[Event "13th Senioren-Cup Tegernsee 2025"]
[Site "Rottach-Egern"]
[Date "2025.03.29"]
[Round "1.9"]
[White "Willin, Bernhard"]
[Black "Strobel, Walter"]
[Result "0-1"]
[Annotator "NA RC"]
[ECO "D94"]
[WhiteElo "1876"]
[BlackElo "2148"]
[PlyCount "154"]
[EventDate "2025.03.25"]
[EventType "swiss"]
[EventCountry "GER"]
[SourceTitle "playchess.com"]
[Source "ChessBase"]
[SourceQuality "1"]
[TimeControl "9000+30"]

1. d4 {[%emt 0:20:05]} Nf6 {[%emt 0:20:20]} 2. c4 {[%emt 0:00:32]} g6 {[%emt 0:00:25]} 3. Nc3 {[%emt 0:00:14]} d5 {[%emt 0:00:16]} 4. Nf3 {[%emt 0:00:45]} Bg7 {[%emt 0:00:08]} 5. e3 {[%emt 0:00:52]} O-O {[%emt 0:00:50]} 6. Be2 {[%emt 0:02:56]} c5 {[%emt 0:01:19]} 7. dxc5 {[%emt 0:01:19]} Qa5 {[%emt 0:01:42]} 8. cxd5 {[%emt 0:07:25]} Nxd5 {[%emt 0:06:41]} 9. Bd2 {[%emt 0:00:43]} Nxc3 {[%emt 0:00:56]} 10. bxc3 {[%emt 0:00:39]} Qxc5 {[%emt 0:03:11]} 11. Qc2 {[%emt 0:04:15]} Nd7 {[%emt 0:01:32]} 12. O-O {[%emt 0:01:02]} Qc7 {[%emt 0:00:54]} 13. Rfd1 {[%emt 0:01:29]} Nb6 {[%emt 0:02:38]} 14. Rac1 {[%emt 1:55:14]} Bd7 {[%emt 0:01:28]} 15. Qe4 {[%emt 0:00:00]} Ba4 {[%emt 0:04:04]} 16. Rf1 {[%emt 0:00:00]} Rfd8 {[%emt 0:01:50]} 17. Be1 {[%emt 0:00:00]} Rac8 {[%emt 0:03:16]} 18. Qb4 {[%emt 0:00:00]} Qd6 {[%emt 0:04:58]} 19. c4 {[%emt 0:00:00]} Qxb4 {[%emt 0:42:19]} 20. Bxb4 {[%emt 0:00:00]} Bb2 {[%emt 0:00:24]} 21. Rb1 {[%emt 0:00:00]} Bf6 {[%emt 0:02:48]} 22. Rfc1 {[%emt 0:00:00]} Nd7 {[%emt 0:07:02]} 23. c5 {[%emt 0:00:00]} Re8 {[%emt 0:05:05]} 24. Nd2 {[%emt 0:00:00]} Bc6 {[%emt 0:01:58]} 25. Bg4 {[%emt 0:00:00]} h5 {[%emt 0:01:47]} 26. Bf3 {[%emt 0:00:00]} Ne5 {[%emt 0:00:34]} 27. Bxc6 {[%emt 0:00:00]} Rxc6 {[%emt 0:00:22]} 28. Ne4 {[%emt 0:00:00]} Bg7 {[%emt 0:01:34]} 29. Rd1 {[%emt 0:00:00]} Rec8 {[%emt 0:01:45]} 30. Kf1 {[%emt 0:00:00]} Kf8 {[%emt 0:01:05]} 31. Ke2 {[%emt 0:00:00]} Ke8 {[%emt 0:00:27]} 32. Bc3 {[%emt 0:00:00]} f5 {[%emt 0:01:25]} 33. Bxe5 {[%emt 0:00:00]} Bxe5 {[%emt 0:00:10]} 34. Nd2 {[%emt 0:00:00]} Rxc5 {[%emt 0:03:48]} 35. Nf3 {[%emt 0:00:00]} b6 {[%emt 0:01:48]} 36. Rd2 {[%emt 0:00:00]} Bf6 {[%emt 0:00:32]} 37. Rb3 {[%emt 0:00:00]} Rc2 {[%emt 0:01:14]} 38. Kd1 {[%emt 0:00:00]} Rc1+ {[%emt 0:00:52]} 39. Ke2 {[%emt 0:00:00]} Ra1 {[%emt 0:02:13]} 40. Nd4 {[%emt 0:00:00]} Bxd4 {[%emt 0:06:06]} 41. exd4 {[%emt 0:00:00]} Kd7 {[%emt 0:00:49]} 42. h4 {[%emt 0:00:00]} Rac1 {[%emt 0:01:12]} 43. Kf3 {[%emt 0:00:00]} Ke6 {[%emt 0:01:40]} 44. Kf4 {[%emt 0:00:00]} Kf6 {[%emt 0:00:20]} 45. Re3 {[%emt 0:00:00]} R1c4 {[%emt 0:01:30]} 46. Kg3 {[%emt 0:00:00]} Rd8 {[%emt 0:02:01]} 47. Red3 {[%emt 0:00:00]} Rd5 {[%emt 0:00:31]} 48. Kf3 {[%emt 0:00:00]} Ra4 {[%emt 0:01:50]} 49. a3 {[%emt 0:00:00]} Rda5 {[%emt 0:00:43]} 50. Ra2 {[%emt 0:00:00]} e6 {[%emt 0:01:32]} 51. Ke3 {[%emt 0:00:00]} b5 {[%emt 0:01:46]} 52. g3 {[%emt 0:00:00]} Ra6 {[%emt 0:02:58]} 53. Rb2 {[%emt 0:00:00]} Rxa3 {[%emt 0:00:48]} 54. Rxb5 {[%emt 0:00:00]} Rxd3+ {[%emt 0:00:28]} 55. Kxd3 {[%emt 0:00:00]} Ra3+ {[%emt 0:00:32]} 56. Ke2 {[%emt 0:00:00]} a5 {[%emt 0:01:18]} 57. Rc5 {[%emt 0:00:00]} g5 {[%emt 0:00:55]} 58. hxg5+ {[%emt 0:00:00]} Kxg5 {[%emt 0:00:06]} 59. Re5 {[%emt 0:00:00]} Kf6 {[%emt 0:00:10]} 60. Kd2 {[%emt 0:00:00]} Ra1 {[%emt 0:00:24]} 61. Ke2 {[%emt 0:00:00]} a4 {[%emt 0:00:57]} 62. Ra5 {[%emt 0:00:00]} a3 {[%emt 0:00:54]} 63. Kf3 {[%emt 0:00:00]} a2 {[%emt 0:00:40]} 64. Kg2 {[%emt 0:00:00]} Ke7 {[%emt 0:00:10]} 65. Kf3 {[%emt 0:00:00]} Kd6 {[%emt 0:00:11]} 66. Kf4 {[%emt 0:00:00]} Kc6 {[%emt 0:00:29]} 67. f3 {[%emt 0:00:00]} Kb6 {[%emt 0:00:15]} 68. Ra8 {[%emt 0:00:00]} Kb5 {[%emt 0:00:04]} 69. Ra7 {[%emt 0:00:00]} Kc4 {[%emt 0:00:37]} 70. Ra8 {[%emt 0:00:00]} Kxd4 {[%emt 0:00:16]} 71. Rd8+ {[%emt 0:00:00]} Kc5 {[%emt 0:00:12]} 72. Ra8 {[%emt 0:00:00]} Kc6 {[%emt 0:00:27]} 73. Ra3 {[%emt 0:00:00]} Kd7 {[%emt 0:00:42]} 74. Ra7+ {[%emt 0:00:00]} Kd6 {[%emt 0:00:11]} 75. Ra5 {[%emt 0:00:00]} Ke7 {[%emt 0:00:06]} 76. Ra8 {[%emt 0:00:00]} Kf7 {[%emt 0:00:36]} 77. Ra7+ {[%emt 0:00:00]} Kf6 {[%emt 0:00:09]} 0-1

[Event "13th Senioren-Cup Tegernsee 2025"]
[Site "Rottach-Egern"]
[Date "2025.03.29"]
[Round "1.10"]
[White "Kolthoff, Siegmund"]
[Black "Samisch, Romuald"]
[Result "1-0"]
[Annotator "NA"]
[ECO "D31"]
[WhiteElo "2121"]
[BlackElo "1870"]
[PlyCount "74"]
[EventDate "2025.03.25"]
[EventType "swiss"]
[EventCountry "GER"]
[SourceTitle "playchess.com"]
[Source "ChessBase"]
[SourceQuality "1"]
[TimeControl "9000+30"]

1. d4 {[%emt 0:20:32]} d5 {[%emt 0:20:39]} 2. c4 {[%emt 0:00:12]} e6 {[%emt 0:00:15]} 3. Nc3 {[%emt 0:00:48]} a6 {[%emt 0:00:50]} 4. cxd5 {[%emt 0:00:32]} exd5 {[%emt 0:00:14]} 5. Nf3 {[%emt 0:01:09]} c6 {[%emt 0:01:32]} 6. Bf4 {[%emt 0:04:56]} Bd6 {[%emt 0:00:48]} 7. Bg3 {[%emt 0:01:21]} Ne7 {[%emt 0:16:28]} 8. e3 {[%emt 0:05:52]} Bf5 {[%emt 0:05:04]} 9. Ne5 {[%emt 0:09:48]} O-O {[%emt 0:08:26]} 10. Bd3 {[%emt 0:04:19]} Qc7 {[%emt 0:04:30]} 11. Rc1 {[%emt 0:02:17]} Nd7 {[%emt 0:04:38]} 12. Nxd7 {[%emt 0:15:56]} Qxd7 {[%emt 0:01:01]} 13. Bxd6 {[%emt 0:01:20]} Qxd6 {[%emt 0:00:14]} 14. O-O {[%emt 0:00:47]} Qg6 {[%emt 0:02:56]} 15. Bxf5 {[%emt 0:01:36]} Nxf5 {[%emt 0:04:02]} 16. b4 {[%emt 0:06:26]} Nd6 {[%emt 0:03:55]} 17. Qc2 {[%emt 0:04:18]} Rfe8 {[%emt 0:06:22]} 18. Qxg6 {[%emt 0:00:41]} hxg6 {[%emt 0:04:17]} 19. Na4 {[%emt 0:00:55]} Nc4 {[%emt 0:02:41]} 20. Nc5 {[%emt 0:04:02]} Re7 {[%emt 0:00:47]} 21. Rc2 {[%emt 0:04:02]} f5 {[%emt 0:06:59]} 22. h4 {[%emt 0:01:58]} Kf7 {[%emt 0:01:43]} 23. Ra1 {[%emt 0:04:27]} Kf6 {[%emt 0:08:29]} 24. a4 {[%emt 0:02:53]} a5 {[%emt 0:12:19]} 25. bxa5 {[%emt 0:07:15]} Rxa5 {[%emt 0:02:16]} 26. Rca2 {[%emt 0:02:48]} g5 {[%emt 0:03:23]} 27. hxg5+ {[%emt 0:00:53]} Kxg5 {[%emt 0:00:14]} 28. g3 {[%emt 0:00:10]} b5 {[%emt 0:07:49]} 29. axb5 {[%emt 0:05:45]} Rxa2 {[%emt 0:00:47]} 30. Rxa2 {[%emt 0:01:33]} cxb5 {[%emt 0:00:37]} 31. Ra8 {[%emt 0:00:14]} Nd2 {[%emt 0:07:42]} 32. Rb8 {[%emt 0:00:31]} Ra7 {[%emt 0:02:11]} 33. Kg2 {[%emt 0:02:14]} Kg4 {[%emt 0:03:33]} 34. Rxb5 {[%emt 0:02:19]} Nc4 {[%emt 0:03:48]} 35. Nd3 {[%emt 0:04:11]} Ra2 {[%emt 0:16:31]} 36. Ne5+ {[%emt 0:39:30]} Nxe5 37. dxe5 {[%emt 0:00:00]} Rd2 {[%emt 0:00:00]} 1-0